[Event "*** SCC Grand Prix: Titled Tuesday Blitz"]
[Site "Chess.com"]
[Date "2020.07.21"]
[Round "3"]
[White "NormWeinstein"]
[Black "denispopov"]
[Result "1-0"]
[WhiteElo "2460"]
[BlackElo "1809"]
[TimeControl "180+1"]
[EndTime "10:26:50 PDT"]
[Termination "NormWeinstein won on time"]

1. e4 {[%clk 0:02:55.8]} 1... c5 {[%clk 0:02:58.6]} 2. Nf3 {[%clk 0:02:55.7]}
2... Nc6 {[%clk 0:02:58.9]} 3. Nc3 {[%clk 0:02:55.9]} 3... g6 {[%clk 0:02:58.6]}
4. d4 {[%clk 0:02:55.6]} 4... cxd4 {[%clk 0:02:58.4]} 5. Nxd4 {[%clk 0:02:56.2]}
5... Bg7 {[%clk 0:02:59.1]} 6. Be3 {[%clk 0:02:56.5]} 6... d6 {[%clk 0:02:58.2]}
7. Bc4 {[%clk 0:02:55.7]} 7... Nf6 {[%clk 0:02:54.1]} 8. h3 {[%clk 0:02:55.5]}
8... Ne5 {[%clk 0:02:51.6]} 9. Bb3 {[%clk 0:02:54]} 9... Bd7 {[%clk 0:02:51.8]}
10. f4 {[%clk 0:02:52.9]} 10... Nc6 {[%clk 0:02:51.5]} 11. Qf3 {[%clk
0:02:52.4]} 11... Qa5 {[%clk 0:02:42.6]} 12. O-O {[%clk 0:02:49]} 12... O-O
{[%clk 0:02:39.9]} 13. Rae1 {[%clk 0:02:45.2]} 13... Rac8 {[%clk 0:02:28]} 14.
Kh1 {[%clk 0:02:43.3]} 14... a6 {[%clk 0:02:21.2]} 15. Rd1 {[%clk 0:02:38.2]}
15... b5 {[%clk 0:02:18.7]} 16. a3 {[%clk 0:02:36.6]} 16... Qc7 {[%clk
0:02:02.8]} 17. Qg3 {[%clk 0:02:23.6]} 17... b4 {[%clk 0:01:06.7]} 18. axb4
{[%clk 0:02:22.1]} 18... Nxb4 {[%clk 0:01:07.6]} 19. Rfe1 {[%clk 0:02:05.5]}
19... Nh5 {[%clk 0:01:05.1]} 20. Qf2 {[%clk 0:02:04.3]} 20... e6 {[%clk
0:00:48.7]} 21. Nf3 {[%clk 0:01:57.9]} 21... Bc6 {[%clk 0:00:41.5]} 22. f5
{[%clk 0:01:47.1]} 22... Bxc3 {[%clk 0:00:17.7]} 23. bxc3 {[%clk 0:01:46]} 23...
Bxe4 {[%clk 0:00:16.9]} 24. cxb4 {[%clk 0:01:36.3]} 24... exf5 {[%clk
0:00:16.9]} 25. Bh6 {[%clk 0:01:25.6]} 25... Rfe8 {[%clk 0:00:15.9]} 26. Ng5
{[%clk 0:01:25.2]} 26... d5 {[%clk 0:00:13.4]} 27. Nxe4 {[%clk 0:01:16.4]} 27...
dxe4 {[%clk 0:00:08.2]} 28. g4 {[%clk 0:01:01.1]} 28... Ng3+ {[%clk 0:00:05.4]}
29. Kg2 {[%clk 0:01:00.7]} 1-0

[Event "*** SCC Grand Prix: Titled Tuesday Blitz"]
[Site "Chess.com"]
[Date "2020.07.21"]
[Round "3"]
[White "ArjunErigaisi2003"]
[Black "Caterpiller35"]
[Result "1-0"]
[WhiteElo "3037"]
[BlackElo "2456"]
[TimeControl "180+1"]
[EndTime "10:26:51 PDT"]
[Termination "ArjunErigaisi2003 won by resignation"]

1. c4 {[%clk 0:03:00.9]} 1... e5 {[%clk 0:02:56.8]} 2. Nc3 {[%clk 0:03:00.6]}
2... Nc6 {[%clk 0:02:54.7]} 3. Nf3 {[%clk 0:03:00.6]} 3... Bc5 {[%clk
0:02:53.5]} 4. e3 {[%clk 0:03:00.1]} 4... d6 {[%clk 0:02:51.1]} 5. d4 {[%clk
0:02:59.5]} 5... Bb6 {[%clk 0:02:49.4]} 6. c5 {[%clk 0:02:48.6]} 6... dxc5
{[%clk 0:02:42.4]} 7. d5 {[%clk 0:02:48.9]} 7... Nce7 {[%clk 0:02:38.1]} 8. Nxe5
{[%clk 0:02:47.1]} 8... Nf6 {[%clk 0:02:38.3]} 9. e4 {[%clk 0:02:43.6]} 9... O-O
{[%clk 0:02:38.2]} 10. Nc4 {[%clk 0:02:42.7]} 10... Re8 {[%clk 0:02:33.7]} 11.
Be2 {[%clk 0:02:42]} 11... Ng6 {[%clk 0:02:30.3]} 12. f3 {[%clk 0:02:33.1]}
12... Nd7 {[%clk 0:02:17.8]} 13. O-O {[%clk 0:02:30.5]} 13... Qh4 {[%clk
0:02:05.1]} 14. g3 {[%clk 0:02:22.1]} 14... Qh3 {[%clk 0:02:02.5]} 15. Be3
{[%clk 0:02:13.4]} 15... Nde5 {[%clk 0:01:59]} 16. Nxb6 {[%clk 0:02:03.3]} 16...
axb6 {[%clk 0:01:57.4]} 17. Qd2 {[%clk 0:02:02.8]} 17... h5 {[%clk 0:01:46.5]}
18. Rf2 {[%clk 0:01:58.4]} 18... Qd7 {[%clk 0:01:02.5]} 19. a3 {[%clk
0:01:35.5]} 19... c4 {[%clk 0:00:59.4]} 20. Rd1 {[%clk 0:01:31.6]} 20... b5
{[%clk 0:00:59.2]} 21. Bd4 {[%clk 0:01:29]} 21... f5 {[%clk 0:00:50.9]} 22. f4
{[%clk 0:01:17.7]} 22... Nd3 {[%clk 0:00:49.6]} 23. Bxd3 {[%clk 0:01:17.5]}
23... cxd3 {[%clk 0:00:50.5]} 24. e5 {[%clk 0:01:17.1]} 24... b4 {[%clk
0:00:45.6]} 25. axb4 {[%clk 0:01:18]} 25... h4 {[%clk 0:00:42.9]} 26. Qxd3
{[%clk 0:01:16]} 26... hxg3 {[%clk 0:00:41.5]} 27. hxg3 {[%clk 0:01:16.9]} 27...
b6 {[%clk 0:00:33.7]} 28. e6 {[%clk 0:01:15.2]} 28... Qe7 {[%clk 0:00:33.9]} 29.
Qxf5 {[%clk 0:01:14.7]} 29... Nf8 {[%clk 0:00:29.4]} 30. Rh2 {[%clk 0:01:08.7]}
1-0

[Event "*** SCC Grand Prix: Titled Tuesday Blitz"]
[Site "Chess.com"]
[Date "2020.07.21"]
[Round "3"]
[White "SilviusTiberius"]
[Black "Ashedu66"]
[Result "1-0"]
[WhiteElo "2504"]
[BlackElo "2226"]
[TimeControl "180+1"]
[EndTime "10:26:52 PDT"]
[Termination "SilviusTiberius won by resignation"]

1. e4 {[%clk 0:03:00.9]} 1... e5 {[%clk 0:02:59.9]} 2. Nf3 {[%clk 0:03:01]} 2...
Nc6 {[%clk 0:03:00.1]} 3. Bb5 {[%clk 0:03:01.3]} 3... Nge7 {[%clk 0:02:59.6]} 4.
Nc3 {[%clk 0:02:52.5]} 4... g6 {[%clk 0:02:58.8]} 5. d4 {[%clk 0:02:47.2]} 5...
exd4 {[%clk 0:02:57.9]} 6. Nd5 {[%clk 0:02:45.4]} 6... Bg7 {[%clk 0:02:54.6]} 7.
Bg5 {[%clk 0:02:44.1]} 7... h6 {[%clk 0:02:53.3]} 8. Bf6 {[%clk 0:02:44.4]} 8...
Kf8 {[%clk 0:02:51.5]} 9. Qd2 {[%clk 0:02:15.3]} 9... Bxf6 {[%clk 0:02:43.5]}
10. Nxf6 {[%clk 0:02:15.6]} 10... Nf5 {[%clk 0:02:28.4]} 11. Nd5 {[%clk
0:02:05.7]} 11... Nd6 {[%clk 0:01:50.8]} 12. Bd3 {[%clk 0:02:05.8]} 12... Kg7
{[%clk 0:01:29.6]} 13. O-O-O {[%clk 0:02:03.1]} 13... Re8 {[%clk 0:01:21]} 14.
Rhe1 {[%clk 0:02:03.4]} 14... f6 {[%clk 0:01:14.6]} 15. Qf4 {[%clk 0:01:46.8]}
15... Nf7 {[%clk 0:01:10]} 16. Nxc7 {[%clk 0:01:37]} 16... Nce5 {[%clk
0:01:04.7]} 17. Nxa8 {[%clk 0:01:29.6]} 17... b6 {[%clk 0:00:53.3]} 18. Nxd4
{[%clk 0:01:21.8]} 18... Bb7 {[%clk 0:00:52.2]} 19. Qg3 {[%clk 0:01:13.9]} 19...
Kh7 {[%clk 0:00:33.9]} 20. f4 {[%clk 0:01:00.5]} 20... Nxd3+ {[%clk 0:00:32.7]}
21. Qxd3 {[%clk 0:01:00.1]} 21... Qxa8 {[%clk 0:00:30.7]} 22. Nb5 {[%clk
0:00:54]} 22... Bxe4 {[%clk 0:00:16.3]} 23. Qxd7 {[%clk 0:00:50]} 23... Kg8
{[%clk 0:00:15.1]} 24. Nc7 {[%clk 0:00:47]} 24... Qc6 {[%clk 0:00:12.2]} 25.
Qxc6 {[%clk 0:00:45.5]} 25... Bxc6 {[%clk 0:00:11.6]} 26. Nxe8 {[%clk
0:00:45.3]} 1-0

[Event "*** SCC Grand Prix: Titled Tuesday Blitz"]
[Site "Chess.com"]
[Date "2020.07.21"]
[Round "3"]
[White "qingaunlee"]
[Black "Chess_Boxer123"]
[Result "0-1"]
[WhiteElo "2343"]
[BlackElo "2572"]
[TimeControl "180+1"]
[EndTime "10:26:53 PDT"]
[Termination "Chess_Boxer123 won by resignation"]

1. e4 {[%clk 0:03:00.9]} 1... c6 {[%clk 0:02:59.4]} 2. d4 {[%clk 0:03:00.2]}
2... d5 {[%clk 0:02:59.1]} 3. exd5 {[%clk 0:03:01.1]} 3... cxd5 {[%clk
0:02:58.2]} 4. c4 {[%clk 0:03:02]} 4... Nf6 {[%clk 0:02:52.1]} 5. Nc3 {[%clk
0:03:01.3]} 5... g6 {[%clk 0:02:51.2]} 6. Qb3 {[%clk 0:02:59.9]} 6... Bg7 {[%clk
0:02:48.5]} 7. cxd5 {[%clk 0:02:59.6]} 7... O-O {[%clk 0:02:48.4]} 8. g3 {[%clk
0:02:59.6]} 8... e6 {[%clk 0:02:44.6]} 9. Bg2 {[%clk 0:02:50.3]} 9... Nxd5
{[%clk 0:02:43.2]} 10. Nge2 {[%clk 0:02:41.5]} 10... Nxc3 {[%clk 0:02:40.3]} 11.
bxc3 {[%clk 0:02:41]} 11... Nc6 {[%clk 0:02:40.1]} 12. O-O {[%clk 0:02:40.2]}
12... e5 {[%clk 0:02:37.4]} 13. d5 {[%clk 0:02:35]} 13... Na5 {[%clk 0:02:36.7]}
14. Qb4 {[%clk 0:02:28.7]} 14... b6 {[%clk 0:02:32.7]} 15. Be3 {[%clk
0:02:13.9]} 15... Ba6 {[%clk 0:02:27.9]} 16. Rfe1 {[%clk 0:02:10.8]} 16... Rc8
{[%clk 0:02:22.3]} 17. Rad1 {[%clk 0:02:07.9]} 17... Rc4 {[%clk 0:02:06.3]} 18.
Qb1 {[%clk 0:02:05.8]} 18... Qd6 {[%clk 0:02:06]} 19. Rd2 {[%clk 0:01:57.4]}
19... f5 {[%clk 0:02:03]} 20. Bf1 {[%clk 0:01:46.7]} 20... Rc7 {[%clk
0:01:57.8]} 21. f4 {[%clk 0:01:39.2]} 21... Nc4 {[%clk 0:01:53.5]} 22. Rd3
{[%clk 0:01:39.1]} 22... Na3 {[%clk 0:01:46.7]} 23. Qd1 {[%clk 0:01:38.7]} 23...
Bxd3 {[%clk 0:01:45.2]} 24. Qxd3 {[%clk 0:01:39.6]} 24... e4 {[%clk 0:01:45.9]}
25. Qd1 {[%clk 0:01:37.9]} 25... Rd8 {[%clk 0:01:41.1]} 26. Nd4 {[%clk
0:01:27.5]} 26... Qxd5 {[%clk 0:01:31.7]} 27. Qa4 {[%clk 0:01:05.8]} 27... Nc4
{[%clk 0:01:26.3]} 28. Bf2 {[%clk 0:01:02.6]} 28... e3 {[%clk 0:01:24.9]} 29.
Bxe3 {[%clk 0:01:02.4]} 29... Nxe3 {[%clk 0:01:25]} 30. Rxe3 {[%clk 0:01:02.4]}
30... Bxd4 {[%clk 0:01:25.3]} 31. cxd4 {[%clk 0:00:58.8]} 31... Qxd4 {[%clk
0:01:25.2]} 32. Qb3+ {[%clk 0:00:58.4]} 32... Kg7 {[%clk 0:01:24]} 33. Qe6
{[%clk 0:00:39.9]} 33... Rc3 {[%clk 0:01:13.8]} 34. Qe7+ {[%clk 0:00:39.2]}
34... Kh8 {[%clk 0:01:13.4]} 35. Kf2 {[%clk 0:00:34.5]} 35... Qxe3+ {[%clk
0:01:13.2]} 36. Qxe3 {[%clk 0:00:34.6]} 36... Rxe3 {[%clk 0:01:14.1]} 37. Kxe3
{[%clk 0:00:35.5]} 37... Rd1 {[%clk 0:01:12.3]} 38. Bc4 {[%clk 0:00:35.3]} 38...
Rc1 {[%clk 0:01:11.7]} 39. Kd4 {[%clk 0:00:33.5]} 39... Rc2 {[%clk 0:01:10.1]}
40. h3 {[%clk 0:00:32.2]} 40... Rg2 {[%clk 0:01:09.9]} 41. Ke5 {[%clk 0:00:29]}
41... Rxg3 {[%clk 0:01:09.3]} 0-1

[Event "*** SCC Grand Prix: Titled Tuesday Blitz"]
[Site "Chess.com"]
[Date "2020.07.21"]
[Round "3"]
[White "Bigfish1995"]
[Black "Tooweak2slow03"]
[Result "1-0"]
[WhiteElo "3023"]
[BlackElo "2688"]
[TimeControl "180+1"]
[EndTime "10:26:54 PDT"]
[Termination "Bigfish1995 won by resignation"]

1. d4 {[%clk 0:02:48]} 1... e6 {[%clk 0:02:59.4]} 2. e4 {[%clk 0:02:47.4]} 2...
d5 {[%clk 0:02:59]} 3. Nc3 {[%clk 0:02:47.7]} 3... h6 {[%clk 0:02:59.2]} 4. a3
{[%clk 0:02:46.7]} 4... Nf6 {[%clk 0:02:55]} 5. e5 {[%clk 0:02:45.6]} 5... Nfd7
{[%clk 0:02:54.6]} 6. Nce2 {[%clk 0:02:45.5]} 6... c5 {[%clk 0:02:54.4]} 7. c3
{[%clk 0:02:45.9]} 7... Nc6 {[%clk 0:02:51.8]} 8. f4 {[%clk 0:02:45.8]} 8... b5
{[%clk 0:02:48.4]} 9. Nf3 {[%clk 0:02:43.6]} 9... a5 {[%clk 0:02:46.1]} 10. dxc5
{[%clk 0:02:43.5]} 10... Bxc5 {[%clk 0:02:45.3]} 11. Ned4 {[%clk 0:02:43.9]}
11... Nxd4 {[%clk 0:02:07.2]} 12. cxd4 {[%clk 0:02:43.8]} 12... Be7 {[%clk
0:02:07]} 13. Bxb5 {[%clk 0:02:41.8]} 13... Qb6 {[%clk 0:02:07]} 14. Bd3 {[%clk
0:02:25.2]} 14... Ba6 {[%clk 0:02:05.3]} 15. O-O {[%clk 0:02:22.1]} 15... Bxd3
{[%clk 0:02:02.5]} 16. Qxd3 {[%clk 0:02:21.9]} 16... O-O {[%clk 0:02:01.7]} 17.
f5 {[%clk 0:02:17.5]} 17... exf5 {[%clk 0:01:58.5]} 18. Qxf5 {[%clk 0:02:17.1]}
18... Qe6 {[%clk 0:01:59.4]} 19. Qd3 {[%clk 0:01:44.2]} 19... Nb6 {[%clk
0:01:55.9]} 20. b3 {[%clk 0:01:41.7]} 20... a4 {[%clk 0:01:54.7]} 21. b4 {[%clk
0:01:42.1]} 21... Nc4 {[%clk 0:01:54]} 22. Bf4 {[%clk 0:01:41.2]} 22... Rac8
{[%clk 0:01:47.9]} 23. h3 {[%clk 0:01:37]} 23... Nb2 {[%clk 0:01:44.2]} 24. Qe2
{[%clk 0:01:36.4]} 24... Qg6 {[%clk 0:01:40]} 25. Ne1 {[%clk 0:01:19.7]} 25...
Nc4 {[%clk 0:01:34.5]} 26. Nd3 {[%clk 0:01:17.6]} 26... f6 {[%clk 0:01:32.1]}
27. e6 {[%clk 0:01:13.2]} 27... Rc6 {[%clk 0:01:28.5]} 28. Nc5 {[%clk
0:01:12.6]} 28... Re8 {[%clk 0:01:28.6]} 29. Qf3 {[%clk 0:01:06.6]} 29... Bxc5
{[%clk 0:01:27.2]} 30. dxc5 {[%clk 0:01:05.7]} 30... Rexe6 {[%clk 0:01:21]} 31.
Qxd5 {[%clk 0:01:04.1]} 31... Qe4 {[%clk 0:01:20.7]} 32. Qxe4 {[%clk 0:00:46.8]}
32... Rxe4 {[%clk 0:01:21.6]} 33. Rae1 {[%clk 0:00:46.4]} 33... Rxe1 {[%clk
0:01:16.3]} 34. Rxe1 {[%clk 0:00:46.8]} 34... Nxa3 {[%clk 0:01:17.2]} 35. Ra1
{[%clk 0:00:46.8]} 35... Nc2 {[%clk 0:01:17.2]} 36. Rxa4 {[%clk 0:00:47]} 36...
g5 {[%clk 0:01:15.2]} 37. Bd6 {[%clk 0:00:45]} 37... Nd4 {[%clk 0:01:15.2]} 38.
Ra5 {[%clk 0:00:41.9]} 38... Kf7 {[%clk 0:01:14.1]} 39. b5 {[%clk 0:00:40.7]}
39... Rc8 {[%clk 0:01:14.4]} 40. b6 {[%clk 0:00:41]} 40... Nc6 {[%clk
0:01:12.1]} 41. b7 {[%clk 0:00:41.1]} 41... Rd8 {[%clk 0:01:11.3]} 42. Ra6
{[%clk 0:00:40.6]} 42... Rd7 {[%clk 0:01:11.3]} 43. Rxc6 {[%clk 0:00:39.8]}
43... Rxb7 {[%clk 0:01:11.6]} 44. Rc7+ {[%clk 0:00:40.3]} 44... Rxc7 {[%clk
0:01:11.9]} 45. Bxc7 {[%clk 0:00:41.2]} 45... Ke6 {[%clk 0:01:12.3]} 46. Bd6
{[%clk 0:00:37.6]} 46... Kd5 {[%clk 0:01:12.5]} 47. g4 {[%clk 0:00:38.1]} 1-0

[Event "*** SCC Grand Prix: Titled Tuesday Blitz"]
[Site "Chess.com"]
[Date "2020.07.21"]
[Round "3"]
[White "Carnivoras"]
[Black "ChessWarrior7197"]
[Result "0-1"]
[WhiteElo "2616"]
[BlackElo "2872"]
[TimeControl "180+1"]
[EndTime "10:26:55 PDT"]
[Termination "ChessWarrior7197 won by resignation"]

1. d4 {[%clk 0:02:57.9]} 1... d5 {[%clk 0:03:00.2]} 2. Nf3 {[%clk 0:02:58.1]}
2... e6 {[%clk 0:02:59.5]} 3. Bf4 {[%clk 0:02:55.6]} 3... Nf6 {[%clk 0:02:59.5]}
4. e3 {[%clk 0:02:56.1]} 4... Bd6 {[%clk 0:02:59.8]} 5. Bd3 {[%clk 0:02:54.3]}
5... c5 {[%clk 0:02:59.5]} 6. c3 {[%clk 0:02:48.7]} 6... Nc6 {[%clk 0:02:59.7]}
7. O-O {[%clk 0:02:48.4]} 7... O-O {[%clk 0:02:59.5]} 8. Nbd2 {[%clk 0:02:43.2]}
8... Bxf4 {[%clk 0:02:59.6]} 9. exf4 {[%clk 0:02:43.4]} 9... cxd4 {[%clk
0:02:59.5]} 10. Nxd4 {[%clk 0:02:43.8]} 10... Qb6 {[%clk 0:02:59.7]} 11. N2b3
{[%clk 0:02:42.5]} 11... Bd7 {[%clk 0:02:58.5]} 12. Qe2 {[%clk 0:02:41.3]} 12...
a5 {[%clk 0:02:52.1]} 13. Nb5 {[%clk 0:02:35.4]} 13... a4 {[%clk 0:02:51]} 14.
N3d4 {[%clk 0:02:35.3]} 14... Nxd4 {[%clk 0:02:51.5]} 15. Nxd4 {[%clk
0:02:35.4]} 15... a3 {[%clk 0:02:51.9]} 16. b3 {[%clk 0:02:30.2]} 16... Rfc8
{[%clk 0:02:51.7]} 17. Rac1 {[%clk 0:02:30.3]} 17... Rc7 {[%clk 0:02:51.8]} 18.
Rc2 {[%clk 0:02:29.4]} 18... Rac8 {[%clk 0:02:51.5]} 19. Rfc1 {[%clk 0:02:29.9]}
19... Qa5 {[%clk 0:02:43.8]} 20. Qe1 {[%clk 0:02:27.7]} 20... h6 {[%clk
0:02:35.4]} 21. h3 {[%clk 0:02:25.8]} 21... Ne8 {[%clk 0:02:35.3]} 22. f5 {[%clk
0:02:19.5]} 22... exf5 {[%clk 0:02:34.5]} 23. Bxf5 {[%clk 0:02:16.8]} 23... Nd6
{[%clk 0:02:33]} 24. Bxd7 {[%clk 0:02:16.4]} 24... Rxd7 {[%clk 0:02:33.6]} 25.
Qe5 {[%clk 0:02:12.2]} 25... Re8 {[%clk 0:02:30.4]} 26. Qf4 {[%clk 0:02:07.4]}
26... Re4 {[%clk 0:02:26.3]} 27. Qg3 {[%clk 0:02:07.5]} 27... Qb6 {[%clk
0:02:21.6]} 28. Kh2 {[%clk 0:02:06.7]} 28... Rde7 {[%clk 0:02:18.5]} 29. Rd1
{[%clk 0:01:59.9]} 29... Kh7 {[%clk 0:02:15.3]} 30. Qf3 {[%clk 0:01:58.5]} 30...
R7e5 {[%clk 0:01:59.8]} 31. Rcd2 {[%clk 0:01:55.2]} 31... Qc5 {[%clk 0:01:56.3]}
32. Rd3 {[%clk 0:01:53.9]} 32... f5 {[%clk 0:01:50.5]} 33. Nc2 {[%clk
0:01:42.5]} 33... Nb5 {[%clk 0:01:37]} 34. Nd4 {[%clk 0:01:11]} 34... Nd6 {[%clk
0:01:36.8]} 35. Nc2 {[%clk 0:01:10.7]} 35... Nf7 {[%clk 0:01:27.8]} 36. Ne3
{[%clk 0:00:56.3]} 36... Ng5 {[%clk 0:01:27.8]} 37. Qh5 {[%clk 0:00:56.5]} 37...
f4 {[%clk 0:01:23.4]} 38. Rxd5 {[%clk 0:00:40.7]} 38... Qxc3 {[%clk 0:01:04.9]}
39. Ng4 {[%clk 0:00:37.2]} 39... Nf3+ {[%clk 0:01:04.3]} 40. gxf3 {[%clk
0:00:34.5]} 40... Rxh5 {[%clk 0:01:04.4]} 41. fxe4 {[%clk 0:00:31.2]} 41...
Qxh3+ {[%clk 0:01:04]} 0-1

[Event "*** SCC Grand Prix: Titled Tuesday Blitz"]
[Site "Chess.com"]
[Date "2020.07.21"]
[Round "3"]
[White "Kavyev_Ruslan"]
[Black "XDPS"]
[Result "0-1"]
[WhiteElo "2429"]
[BlackElo "2728"]
[TimeControl "180+1"]
[EndTime "10:26:55 PDT"]
[Termination "XDPS won by resignation"]

1. d4 {[%clk 0:03:00.9]} 1... d5 {[%clk 0:02:59.7]} 2. c4 {[%clk 0:03:00.3]}
2... c6 {[%clk 0:02:57.6]} 3. Nf3 {[%clk 0:02:59.5]} 3... Nf6 {[%clk 0:02:55.1]}
4. g3 {[%clk 0:02:59.7]} 4... Bf5 {[%clk 0:02:52.9]} 5. Nc3 {[%clk 0:02:59.3]}
5... e6 {[%clk 0:02:51.8]} 6. Nh4 {[%clk 0:02:59.5]} 6... dxc4 {[%clk
0:02:44.5]} 7. Nxf5 {[%clk 0:02:59]} 7... exf5 {[%clk 0:02:45.4]} 8. e3 {[%clk
0:02:59.6]} 8... Nbd7 {[%clk 0:02:01.5]} 9. Bxc4 {[%clk 0:02:58.5]} 9... Nb6
{[%clk 0:02:02.1]} 10. Bb3 {[%clk 0:02:58.4]} 10... Qd7 {[%clk 0:02:02.2]} 11.
Qd3 {[%clk 0:02:57.8]} 11... g6 {[%clk 0:01:58.5]} 12. Bd2 {[%clk 0:02:56.4]}
12... h5 {[%clk 0:01:54.2]} 13. O-O-O {[%clk 0:02:54.4]} 13... O-O-O {[%clk
0:01:54.2]} 14. f3 {[%clk 0:02:52.2]} 14... h4 {[%clk 0:01:43.4]} 15. Rhg1
{[%clk 0:02:47.7]} 15... hxg3 {[%clk 0:01:43.2]} 16. hxg3 {[%clk 0:02:48.6]}
16... Kb8 {[%clk 0:01:39.9]} 17. Kb1 {[%clk 0:02:41.1]} 17... Rh3 {[%clk
0:01:15.8]} 18. e4 {[%clk 0:02:36.6]} 18... fxe4 {[%clk 0:01:08.8]} 19. fxe4
{[%clk 0:02:37.5]} 19... Ng4 {[%clk 0:00:52.2]} 20. Bf4+ {[%clk 0:02:32.8]}
20... Ka8 {[%clk 0:00:51.8]} 21. Qf3 {[%clk 0:02:23.7]} 21... f5 {[%clk
0:00:47.1]} 22. exf5 {[%clk 0:01:58.6]} 22... gxf5 {[%clk 0:00:48]} 23. d5
{[%clk 0:01:58.7]} 23... c5 {[%clk 0:00:47.8]} 24. Bc2 {[%clk 0:01:51.6]} 24...
Rh2 {[%clk 0:00:45.8]} 25. Bg5 {[%clk 0:01:49.8]} 25... Rf2 {[%clk 0:00:40.3]}
26. Qd3 {[%clk 0:01:39.6]} 26... c4 {[%clk 0:00:38]} 27. Qd4 {[%clk 0:01:36.1]}
27... Bg7 {[%clk 0:00:38.2]} 28. Qc5 {[%clk 0:01:23.5]} 28... Rc8 {[%clk
0:00:36]} 29. Qe7 {[%clk 0:01:23.5]} 29... Qxe7 {[%clk 0:00:29]} 30. Bxe7 {[%clk
0:01:24.4]} 30... Ne3 {[%clk 0:00:29]} 31. Rc1 {[%clk 0:01:20.2]} 31... Bxc3
{[%clk 0:00:29.2]} 32. bxc3 {[%clk 0:01:17.4]} 32... Nbxd5 {[%clk 0:00:29.8]}
33. Bb4 {[%clk 0:01:12.7]} 33... b6 {[%clk 0:00:25.2]} 34. Ba4 {[%clk
0:01:07.7]} 34... a5 {[%clk 0:00:23]} 35. Ba3 {[%clk 0:01:06.5]} 35... b5 {[%clk
0:00:22.6]} 36. Bxb5 {[%clk 0:01:05.9]} 36... Rb8 {[%clk 0:00:22.8]} 37. Ka1
{[%clk 0:01:05.2]} 37... Rxb5 {[%clk 0:00:23.3]} 38. Rgd1 {[%clk 0:01:05.1]}
38... Nxd1 {[%clk 0:00:22]} 39. Rxd1 {[%clk 0:01:06]} 39... Ne3 {[%clk
0:00:21.4]} 0-1

[Event "*** SCC Grand Prix: Titled Tuesday Blitz"]
[Site "Chess.com"]
[Date "2020.07.21"]
[Round "3"]
[White "killer311"]
[Black "dodorox"]
[Result "1-0"]
[WhiteElo "2379"]
[BlackElo "2140"]
[TimeControl "180+1"]
[EndTime "10:27:05 PDT"]
[Termination "killer311 won by resignation"]

1. d4 {[%clk 0:03:00.9]} 1... Nf6 {[%clk 0:02:58.9]} 2. c4 {[%clk 0:03:01.2]}
2... e6 {[%clk 0:02:57.9]} 3. Nc3 {[%clk 0:02:59.6]} 3... d5 {[%clk 0:02:56.5]}
4. e3 {[%clk 0:02:58.9]} 4... Be7 {[%clk 0:02:50.8]} 5. Nf3 {[%clk 0:02:59.1]}
5... O-O {[%clk 0:02:49.4]} 6. cxd5 {[%clk 0:02:59.4]} 6... exd5 {[%clk
0:02:48.2]} 7. Bd3 {[%clk 0:03:00.3]} 7... c6 {[%clk 0:02:41.5]} 8. O-O {[%clk
0:03:00.3]} 8... Bg4 {[%clk 0:02:40.5]} 9. Be2 {[%clk 0:02:58.7]} 9... Nbd7
{[%clk 0:02:37.5]} 10. Ne5 {[%clk 0:02:57.2]} 10... Bxe2 {[%clk 0:02:36.5]} 11.
Qxe2 {[%clk 0:02:57.9]} 11... Re8 {[%clk 0:02:08]} 12. f4 {[%clk 0:02:56.4]}
12... Ne4 {[%clk 0:01:50.9]} 13. Nxe4 {[%clk 0:02:52.8]} 13... dxe4 {[%clk
0:01:50.6]} 14. Qg4 {[%clk 0:02:42]} 14... Nf6 {[%clk 0:01:22.9]} 15. Qh3 {[%clk
0:02:38.8]} 15... Qc8 {[%clk 0:01:16.2]} 16. Qxc8 {[%clk 0:02:35.8]} 16... Raxc8
{[%clk 0:01:14.6]} 17. Bd2 {[%clk 0:02:36.7]} 17... Nd5 {[%clk 0:01:11.3]} 18.
Rac1 {[%clk 0:02:34.5]} 18... f6 {[%clk 0:00:57.8]} 19. Nc4 {[%clk 0:02:31.9]}
19... Kf7 {[%clk 0:00:47.9]} 20. a3 {[%clk 0:02:32.1]} 20... Ke6 {[%clk
0:00:41.9]} 21. Rc2 {[%clk 0:02:22.5]} 21... c5 {[%clk 0:00:35.8]} 22. f5+
{[%clk 0:02:21.6]} 22... Kd7 {[%clk 0:00:22.9]} 23. dxc5 {[%clk 0:02:17.3]}
23... Bxc5 {[%clk 0:00:22.8]} 24. Rfc1 {[%clk 0:02:08.2]} 24... b5 {[%clk
0:00:15.2]} 25. Ne5+ {[%clk 0:02:05.9]} 25... Rxe5 {[%clk 0:00:13.6]} 26. Rxc5
{[%clk 0:02:06]} 26... Rxc5 {[%clk 0:00:11.7]} 27. Rxc5 {[%clk 0:02:06.9]} 27...
a6 {[%clk 0:00:12]} 28. g4 {[%clk 0:02:04.9]} 28... Nb6 {[%clk 0:00:05.9]} 29.
Rxe5 {[%clk 0:01:59.8]} 29... fxe5 {[%clk 0:00:06.8]} 30. Bc3 {[%clk 0:01:59.4]}
30... Nc4 {[%clk 0:00:05.3]} 31. Kf2 {[%clk 0:01:59.8]} 31... Ke7 {[%clk
0:00:04.7]} 32. h4 {[%clk 0:01:58]} 32... g6 {[%clk 0:00:02.3]} 33. b3 {[%clk
0:01:56.1]} 33... gxf5 {[%clk 0:00:02.2]} 34. bxc4 {[%clk 0:01:55.5]} 34... bxc4
{[%clk 0:00:02.6]} 35. gxf5 {[%clk 0:01:55.3]} 35... Kf6 {[%clk 0:00:02.4]} 36.
Kg3 {[%clk 0:01:54.8]} 36... Kxf5 {[%clk 0:00:03.3]} 37. a4 {[%clk 0:01:54.6]}
37... h5 {[%clk 0:00:03.2]} 38. a5 {[%clk 0:01:54.5]} 38... Ke6 {[%clk
0:00:02.7]} 39. Kf2 {[%clk 0:01:53.9]} 39... Kd5 {[%clk 0:00:02.1]} 40. Ke2
{[%clk 0:01:54.8]} 40... Ke6 {[%clk 0:00:02]} 41. Kd2 {[%clk 0:01:55.7]} 41...
Kf5 {[%clk 0:00:02.4]} 42. Kc2 {[%clk 0:01:51.8]} 42... Kg4 {[%clk 0:00:02.7]}
43. Bxe5 {[%clk 0:01:52]} 43... Kxh4 {[%clk 0:00:03.4]} 44. Kc3 {[%clk
0:01:51.4]} 44... Kg4 {[%clk 0:00:04]} 45. Kxc4 {[%clk 0:01:51.4]} 45... Kf3
{[%clk 0:00:04.4]} 46. Kd4 {[%clk 0:01:50.9]} 46... h4 {[%clk 0:00:05]} 47. Bf4
{[%clk 0:01:50.3]} 47... h3 {[%clk 0:00:05.2]} 48. Kc5 {[%clk 0:01:49.4]} 48...
Kg2 {[%clk 0:00:04.8]} 49. Kc6 {[%clk 0:01:46.1]} 49... h2 {[%clk 0:00:05.7]}
50. Bxh2 {[%clk 0:01:46]} 50... Kxh2 {[%clk 0:00:05.3]} 51. Kd5 {[%clk
0:01:46.4]} 51... Kg2 {[%clk 0:00:05.8]} 52. Kxe4 {[%clk 0:01:46.9]} 52... Kf2
{[%clk 0:00:06.5]} 53. Kd4 {[%clk 0:01:47.8]} 53... Kf3 {[%clk 0:00:06.2]} 54.
e4 {[%clk 0:01:48.7]} 1-0